bitfinex/quotes_BTCUSD_20220212
["timestamp","ask_amount","ask_price","bid_price","bid_amount"]
[1644668373033,0.05,42327.0,42318.0,0.00023117]
[1644668373233,0.00049166,42324.0,42319.0,0.00049171]
[1644668374233,0.05,42327.0,42318.0,0.00023117]
[1644668374531,0.05,42327.0,42317.0,0.0023]
[1644668374532,0.00049166,42324.0,42319.0,0.00049171]
[1644668375333,0.05,42327.0,42318.0,0.00023117]
[1644668375535,0.05,42327.0,42317.0,0.00253117]
[1644668375784,0.00049166,42324.0,42319.0,0.00049171]
[1644668376382,0.00049166,42324.0,42321.0,0.08060228]
[1644668376586,0.05,42327.0,42321.0,0.08060228]
[1644668376781,0.05,42327.0,42325.0,0.25135607]
[1644668377182,0.05,42337.0,42327.0,0.15]
[1644668377582,0.5,42336.0,42327.0,0.15]
[1644668377984,0.5,42336.0,42329.0,0.23393247]
[1644668378184,0.05,42337.0,42328.0,0.00023117]
[1644668378385,0.1,42336.0,42327.0,0.15023117]
[1644668378585,0.1144,42339.0,42334.0,0.19449591]
[1644668378786,0.05,42345.0,42334.0,0.19449591]
[1644668379443,0.00049106,42339.0,42334.0,0.45433538]
[1644668379633,0.00049106,42339.0,42331.0,0.3]
[1644668379832,0.00049106,42339.0,42330.0,0.04753117]
[1644668380233,0.059079,42341.0,42330.0,0.0473]
[1644668380634,0.00049107,42337.0,42332.0,0.24166506]
[1644668380835,0.00049107,42337.0,42333.0,0.3134269]
[1644668381450,0.059079,42341.0,42333.0,0.3134269]
[1644668381633,0.00049106,42337.0,42333.0,0.3134269]
[1644668382234,0.00049106,42337.0,42334.0,0.28479232]
[1644668382635,0.0598398,42342.0,42334.0,0.28479232]
[1644668382834,0.0098398,42342.0,42334.0,0.28479232]
[1644668383683,0.0098398,42342.0,42333.0,0.3134269]
[1644668383882,0.0098398,42342.0,42333.0,0.22601549]
[1644668384082,0.00049052,42340.0,42333.0,0.22601549]
[1644668384881,0.00049052,42340.0,42334.0,0.28571428]
[1644668385080,0.0098398,42342.0,42334.0,0.28571428]
[1644668385281,0.00049053,42339.0,42336.0,0.08753998]
[1644668386289,0.0098398,42342.0,42332.0,0.24166506]
[1644668387437,0.0098398,42342.0,42329.0,0.20559479]
[1644668388238,0.0689228,42342.0,42329.0,0.20559479]
[1644668388438,0.27547833,42341.0,42329.0,0.20559479]
[1644668388737,0.059084,42338.0,42329.0,0.20559479]
[1644668388943,0.05957356,42338.0,42329.0,0.20559479]
[1644668389739,0.47547833,42341.0,42332.0,0.2573332]
[1644668390141,0.00048957,42336.0,42332.0,0.2573332]
[1644668390987,0.47547833,42341.0,42332.0,0.2573332]
[1644668391191,0.00048957,42336.0,42332.0,0.2573332]
[1644668392189,0.42547833,42341.0,42332.0,0.2573332]
[1644668392392,0.42547833,42341.0,42336.0,0.21106558]
[1644668392590,0.15,42341.0,42336.0,0.21106558]
[1644668392790,0.05,42341.0,42336.0,0.21106558]
[1644668393191,0.0098398,42342.0,42336.0,0.21106558]
[1644668393796,0.00048955,42341.0,42336.0,0.21106558]
[1644668394195,0.00048955,42341.0,42337.0,0.07365791]
[1644668394642,0.0098398,42342.0,42337.0,0.07365791]
[1644668394840,0.00027283,42341.0,42337.0,0.07365791]
[1644668395844,0.0098398,42342.0,42337.0,0.07365791]
[1644668396046,0.00047068,42341.0,42337.0,0.07365791]
[1644668397045,0.00031048,42342.0,42338.0,0.25]
[1644668397245,0.00047068,42341.0,42338.0,0.25]
[1644668397547,0.00047068,42341.0,42337.0,0.07365791]
[1644668398184,0.00031048,42342.0,42333.0,0.118]
[1644668398786,0.05938948,42342.0,42333.0,0.118]
[1644668399185,0.10938948,42342.0,42333.0,0.118]
[1644668400287,0.10938948,42342.0,42333.0,0.18303085]
[1644668400486,0.10938948,42342.0,42333.0,0.118]
[1644668403233,0.10938948,42342.0,42335.0,0.07634278]
[1644668404036,0.05031048,42342.0,42335.0,0.07634278]
[1644668408187,0.05031048,42342.0,42335.0,0.07134278]
[1644668408588,0.05031048,42342.0,42336.0,0.22610481]
[1644668410738,0.00031048,42342.0,42336.0,0.22610481]
[1644668414185,0.00031048,42342.0,42335.0,0.07134278]
[1644668415184,0.059085,42341.0,42335.0,0.07134278]
[1644668415385,0.28611908,42340.0,42335.0,0.07134278]
[1644668415583,0.00031048,42342.0,42335.0,0.07134278]
[1644668415584,0.05938948,42342.0,42335.0,0.07134278]
[1644668415784,0.3232634,42341.0,42335.0,0.07134278]
[1644668416185,0.2,42341.0,42335.0,0.07134278]
[1644668417034,0.05938948,42342.0,42335.0,0.07134278]
[1644668418336,0.05938948,42342.0,42339.0,0.2064281]
[1644668418535,0.00031048,42342.0,42339.0,0.2064281]
[1644668419940,0.05938848,42342.0,42339.0,0.2064281]
[1644668420138,0.27167221,42341.0,42339.0,0.2064281]
[1644668420337,0.32167221,42341.0,42339.0,0.2064281]
[1644668420540,0.05,42341.0,42339.0,0.2064281]
[1644668420787,0.00031048,42342.0,42339.0,0.2064281]
[1644668422788,0.05938748,42342.0,42339.0,0.2064281]
[1644668423391,0.05938748,42342.0,42335.0,0.07134278]
[1644668424735,0.26518302,42341.0,42336.0,0.26926595]
[1644668424938,0.05,42341.0,42336.0,0.26926595]
[1644668425536,0.05938748,42342.0,42336.0,0.26926595]
[1644668425537,0.10938748,42342.0,42336.0,0.26926595]
[1644668425737,0.05938748,42342.0,42336.0,0.26926595]
[1644668426138,0.00031048,42342.0,42336.0,0.26926595]
[1644668428787,0.35180315,42341.0,42336.0,0.26926595]
[1644668429087,0.40180315,42341.0,42336.0,0.26926595]
[1644668429286,0.50180315,42341.0,42336.0,0.26926595]
[1644668431290,0.35180315,42340.0,42336.0,0.26926595]
[1644668431492,0.50180315,42341.0,42336.0,0.26914772]
[1644668431693,0.1,42340.0,42336.0,0.26914772]
[1644668431942,0.50180315,42341.0,42336.0,0.26914772]
[1644668432135,0.35180315,42340.0,42336.0,0.26914772]
[1644668432333,0.059081,42339.0,42336.0,0.26914772]
[1644668432734,0.109081,42339.0,42336.0,0.26914772]
[1644668433134,0.059081,42339.0,42336.0,0.26914772]
[1644668433335,0.41088415,42339.0,42336.0,0.26914772]
[1644668433736,0.51088415,42339.0,42336.0,0.26914772]
[1644668437190,0.35180315,42338.0,42336.0,0.26914772]
[1644668437587,0.40180315,42338.0,42336.0,0.26914772]
[1644668437990,0.35180315,42337.0,42336.0,0.26914772]
[1644668438195,0.35180315,42337.0,42330.0,0.19743293]
[1644668438389,0.45180315,42337.0,42330.0,0.19743293]
[1644668438791,0.3015645,42335.0,42330.0,0.19743293]
[1644668438992,0.3015645,42335.0,42331.0,0.07873494]
[1644668439191,0.3515645,42335.0,42332.0,0.23546866]
[1644668440640,0.3515645,42335.0,42331.0,0.07873494]
[1644668442141,0.3015645,42334.0,42331.0,0.07873494]
[1644668442341,0.3515645,42334.0,42331.0,0.07873494]
[1644668442941,0.05,42334.0,42331.0,0.07873494]
[1644668443388,0.3515645,42335.0,42331.0,0.07873494]
[1644668443592,0.3015645,42334.0,42331.0,0.07873494]
[1644668443787,0.05,42334.0,42331.0,0.07873494]
[1644668444390,0.15,42335.0,42331.0,0.07873494]
[1644668444790,0.05,42335.0,42331.0,0.07873494]
[1644668444989,0.50180315,42337.0,42331.0,0.07873494]
[1644668446495,0.35180315,42336.0,42331.0,0.07873494]
[1644668446936,0.36782143,42336.0,42329.0,0.00023117]
[1644668447138,0.35180315,42335.0,42328.0,0.00023117]
[1644668447336,0.50180315,42335.0,42327.0,0.15023117]
[1644668448136,0.50180315,42335.0,42327.0,0.21929127]
[1644668448936,0.15,42335.0,42327.0,0.21929127]
[1644668449137,0.15,42335.0,42327.0,0.06929127]
[1644668449336,0.41782143,42336.0,42327.0,0.06929127]
[1644668449535,0.31782143,42336.0,42327.0,0.06929127]
[1644668449736,0.41782143,42336.0,42327.0,0.06929127]
[1644668450136,0.41782143,42336.0,42328.0,0.00049111]
[1644668450335,0.41782143,42336.0,42328.0,0.00072228]
[1644668451188,0.41782143,42336.0,42328.0,0.00023117]
[1644668451390,0.41782143,42336.0,42328.0,0.00049111]
[1644668451588,0.41782143,42336.0,42328.0,0.00072228]
[1644668452291,0.05,42334.0,42328.0,0.00023117]
[1644668452491,0.05,42334.0,42328.0,0.00049111]
[1644668452492,0.0473,42333.0,42328.0,0.00049111]
[1644668452689,0.0973,42333.0,42328.0,0.00049111]
[1644668452889,0.1473,42333.0,42328.0,0.00049111]
[1644668453486,0.1473,42333.0,42325.0,0.00023117]
[1644668453687,0.1473,42333.0,42328.0,0.0004911]
[1644668454191,0.0973,42333.0,42328.0,0.0004911]
[1644668454647,0.0473,42333.0,42327.0,0.00023117]
[1644668454843,0.0473,42333.0,42328.0,0.0004911]
[1644668455944,0.00011092,42328.0,42327.0,0.00023117]
[1644668456145,0.00011092,42328.0,42326.0,0.07311233]
[1644668457144,0.00011092,42328.0,42323.0,0.00023117]
[1644668457344,0.00011092,42328.0,42325.0,0.00049112]
[1644668457549,0.168197,42329.0,42321.0,0.18831077]
[1644668457745,0.218197,42329.0,42321.0,0.18831077]
[1644668458194,0.218197,42329.0,42319.0,0.00196477]
[1644668458395,0.218197,42329.0,42317.0,0.0023]
[1644668458596,0.159096,42329.0,42324.0,0.07673676]
[1644668458796,0.2,42330.0,42324.0,0.07673676]
[1644668459000,0.05,42330.0,42324.0,0.07673676]
[1644668459395,0.41739934,42331.0,42324.0,0.07673676]
[1644668459596,0.46469934,42331.0,42324.0,0.07673676]
[1644668460196,0.51469934,42331.0,42324.0,0.07673676]
[1644668461497,0.46739934,42331.0,42324.0,0.07673676]
[1644668462145,0.27649863,42330.0,42324.0,0.07673676]
[1644668463140,0.27649863,42330.0,42322.0,0.23180024]
[1644668463338,0.27649863,42330.0,42323.0,0.00049114]
[1644668463539,0.2,42331.0,42323.0,0.00049114]
[1644668463740,0.05,42331.0,42323.0,0.00049114]
[1644668464140,0.05,42333.0,42323.0,0.00049114]
[1644668464342,0.44914721,42334.0,42322.0,0.23180024]
[1644668464343,0.05,42332.0,42322.0,0.23180024]
[1644668464640,0.27763462,42331.0,42323.0,0.00049114]
[1644668464840,0.32763462,42331.0,42329.0,0.06334645]
[1644668465341,0.41646814,42331.0,42328.0,0.25043356]
[1644668465540,0.41646814,42331.0,42322.0,0.23180024]
[1644668465798,0.41646814,42331.0,42323.0,0.00049116]
[1644668466200,0.41593904,42331.0,42323.0,0.00049116]
[1644668466398,0.15,42331.0,42330.0,0.06504257]
[1644668466600,0.15,42331.0,42330.0,0.29173439]
[1644668466903,0.05,42332.0,42330.0,0.29173439]
[1644668467100,0.40289574,42335.0,42330.0,0.29173439]
[1644668467298,0.50289574,42335.0,42330.0,0.22669182]
[1644668467500,0.50289574,42335.0,42323.0,0.12419117]
[1644668467898,0.50289574,42335.0,42323.0,0.1237]
[1644668467899,0.50240471,42335.0,42323.0,0.1237]
[1644668468098,0.50240471,42335.0,42323.0,0.12419116]
[1644668468099,0.50289573,42335.0,42323.0,0.12419116]
[1644668468299,0.50289573,42335.0,42327.0,0.08741476]
[1644668469202,0.50240471,42335.0,42317.0,0.0023]
[1644668469456,0.118199,42330.0,42317.0,0.0023]
[1644668469648,0.33552107,42329.0,42317.0,0.0023]
[1644668469848,0.48552107,42329.0,42317.0,0.0023]
[1644668470447,0.48552107,42329.0,42321.0,0.00049066]
[1644668470848,0.54462107,42329.0,42321.0,0.00049066]
[1644668471048,0.05,42327.0,42321.0,0.00049066]
[1644668471552,0.05,42327.0,42317.0,0.08147634]
[1644668471749,0.05,42327.0,42322.0,0.00049065]
[1644668472751,0.05,42327.0,42317.0,0.08147634]
[1644668472752,0.05,42327.0,42317.0,0.0023]
[1644668472953,0.05,42327.0,42322.0,0.00049065]
[1644668472954,0.059106,42325.0,42322.0,0.00049065]
[1644668473194,0.106406,42325.0,42322.0,0.00049065]
[1644668473793,0.44555925,42323.0,42316.0,0.00231736]
[1644668473991,0.05,42322.0,42316.0,0.00231736]
[1644668475393,0.05,42322.0,42317.0,0.00021728]
[1644668476204,0.05,42320.0,42317.0,0.00021728]
[1644668476399,0.05,42320.0,42316.0,0.00231736]
[1644668476597,0.05,42320.0,42317.0,0.00049019]
[1644668476797,0.25911,42322.0,42317.0,0.00049019]
[1644668477257,0.0473,42321.0,42317.0,0.00049019]
[1644668477458,0.11708,42321.0,42316.0,0.00231736]
[1644668477854,0.176187,42321.0,42316.0,0.00231736]
[1644668479258,0.11708,42321.0,42316.0,0.00231736]
[1644668479456,0.0473,42321.0,42316.0,0.00231736]
[1644668479654,0.0473,42321.0,42319.0,0.06494138]
[1644668479861,0.05,42322.0,42319.0,0.06494138]
[1644668480057,0.1236,42326.0,42319.0,0.06494138]
[1644668480257,0.0473,42329.0,42319.0,0.06494138]
[1644668480258,0.29347353,42329.0,42319.0,0.06494138]
[1644668481303,0.0004875,42326.0,42320.0,0.00048756]
[1644668482304,0.2473,42329.0,42319.0,0.06494138]
[1644668482508,0.0004875,42326.0,42320.0,0.00048756]
[1644668483507,0.1473,42329.0,42319.0,0.06494138]
[1644668483707,0.0004875,42326.0,42320.0,0.00048756]
[1644668483909,0.1004875,42326.0,42320.0,0.00048756]
[1644668484744,0.1,42326.0,42319.0,0.06494138]
[1644668484943,0.1004875,42326.0,42320.0,0.00048756]
[1644668485148,0.1232,42332.0,42329.0,0.0730029]
[1644668485344,0.0001,42336.0,42329.0,0.0730029]
[1644668485646,0.5001,42338.0,42326.0,0.20097499]
[1644668485844,0.118278,42337.0,42326.0,0.20097499]
[1644668486043,0.118178,42337.0,42326.0,0.20097499]
[1644668486244,2.33155249,42335.0,42326.0,0.20097499]
[1644668486443,0.059095,42331.0,42326.0,0.20097499]
[1644668486646,0.059095,42331.0,42327.0,0.0770368]
[1644668488793,0.1,42333.0,42327.0,0.0770368]
[1644668489194,0.28742885,42336.0,42327.0,0.0770368]
[1644668489397,0.05,42332.0,42327.0,0.0770368]
[1644668489597,0.05,42335.0,42327.0,0.0770368]
[1644668489794,0.00048746,42334.0,42327.0,0.0770368]
[1644668490796,0.059087,42335.0,42327.0,0.0770368]
[1644668491001,0.00048746,42333.0,42327.0,0.0770368]
[1644668491943,0.109087,42335.0,42326.0,0.20097499]
[1644668492739,0.109087,42335.0,42326.0,0.20120154]
[1644668493141,0.05,42335.0,42326.0,0.20120154]
[1644668493540,0.1,42337.0,42326.0,0.20120154]
[1644668493742,0.2192,42338.0,42326.0,0.20097499]
[1644668494041,0.2192,42338.0,42329.0,0.0774142]
[1644668494643,0.00048692,42336.0,42329.0,0.0774142]
[1644668494842,0.059088,42335.0,42329.0,0.0774142]
[1644668495453,0.1192,42338.0,42330.0,0.24657462]
[1644668495702,0.109086,42339.0,42331.0,0.3]
[1644668495703,0.00048693,42334.0,42331.0,0.3]
[1644668495901,0.00048693,42334.0,42330.0,0.24657462]
[1644668496495,0.00048693,42334.0,42331.0,0.23984955]
[1644668496707,0.00031048,42342.0,42331.0,0.43801755]
[1644668497497,0.00031048,42342.0,42338.0,0.23054377]
[1644668497705,0.00031048,42342.0,42339.0,0.27564044]
[1644668497899,0.00031048,42342.0,42340.0,0.05]
[1644668498101,0.00031048,42342.0,42341.0,0.3]
[1644668498298,0.00031048,42342.0,42340.0,0.17437]
[1644668498299,0.00058264,42342.0,42340.0,0.17437]
[1644668498497,0.00058264,42342.0,42340.0,0.12437]
[1644668498897,0.00058264,42342.0,42341.0,0.38424989]
[1644668499198,0.00031048,42342.0,42341.0,0.38424989]
[1644668505694,0.00031048,42342.0,42341.0,0.43147988]
[1644668506939,0.00031048,42342.0,42341.0,0.48147988]
[1644668507143,0.00031048,42342.0,42341.0,0.58147988]
[1644668508846,0.00024853,42361.0,42351.0,0.059033]
[1644668509045,0.00034853,42361.0,42351.0,0.059033]
[1644668509247,0.0001,42361.0,42350.0,0.25961526]
[1644668509445,0.00034853,42361.0,42350.0,0.25961526]
[1644668509744,0.0001,42361.0,42350.0,0.25961526]
[1644668509945,0.0001,42361.0,42350.0,0.31865026]
[1644668509946,0.00034853,42361.0,42350.0,0.31865026]
[1644668510147,0.0001,42361.0,42351.0,0.25424914]
[1644668510352,0.0001,42361.0,42359.0,0.07841696]
[1644668510353,0.00034853,42361.0,42359.0,0.07841696]
[1644668510549,0.00024853,42363.0,42359.0,0.07841696]
[1644668510795,0.00024853,42368.0,42353.0,0.0473]
[1644668510994,0.01,42369.0,42353.0,0.0473]
[1644668511200,0.00024853,42368.0,42362.0,0.24875835]
[1644668511396,0.01,42369.0,42355.0,0.05]
[1644668511397,0.00027216,42363.0,42358.0,0.0473]
[1644668511597,0.00027216,42363.0,42362.0,0.19092865]
[1644668512297,0.00024853,42368.0,42362.0,0.26861448]
[1644668512597,0.00049112,42365.0,42362.0,0.26861448]
[1644668512795,0.00049112,42365.0,42362.0,0.55616653]
[1644668512997,0.00049112,42365.0,42362.0,0.26861448]
[1644668513597,0.00024853,42368.0,42362.0,0.26861448]
[1644668513801,0.00049112,42366.0,42362.0,0.26861448]
[1644668514099,0.00049112,42366.0,42363.0,0.0473]
[1644668514300,0.00196418,42372.0,42365.0,0.75]
[1644668514550,0.00196418,42372.0,42366.0,0.0473]
[1644668514749,0.03,42373.0,42366.0,0.0473]
[1644668515149,0.03,42373.0,42371.0,0.242577]
[1644668515347,0.01,42379.0,42372.0,0.98300952]
[1644668516350,0.01,42379.0,42377.0,0.07914256]
[1644668517950,0.01,42379.0,42378.0,0.18762631]
[1644668519395,0.01,42379.0,42378.0,0.47032517]
[1644668519594,0.01,42379.0,42378.0,0.18762631]
[1644668520196,0.01,42379.0,42377.0,0.07914256]
[1644668523045,0.00048976,42380.0,42378.0,0.75]
[1644668523245,0.0001,42388.0,42385.0,0.08321171]
[1644668523448,0.00195873,42386.0,42378.0,0.75]
[1644668523646,0.00195873,42386.0,42380.0,0.24595278]
[1644668524449,0.06,42389.0,42380.0,0.24595278]
[1644668524648,0.00048973,42385.0,42382.0,0.18607956]
[1644668525703,0.01,42389.0,42387.0,0.18941492]
[1644668526706,0.01,42389.0,42388.0,0.07672611]
[1644668526707,0.0001,42389.0,42388.0,0.07672611]
[1644668526906,0.01,42399.0,42389.0,0.75]
[1644668527109,0.0002736,42390.0,42389.0,0.75]
[1644668527705,0.0002736,42390.0,42389.0,0.97297249]
[1644668527902,0.01,42399.0,42389.0,1.27375807]
[1644668528302,0.0002736,42392.0,42389.0,1.27375807]
[1644668528508,0.0002736,42392.0,42390.0,0.0473]
[1644668528702,0.0002736,42392.0,42391.0,0.32214285]
[1644668529103,0.01,42399.0,42391.0,0.32214285]
[1644668529553,0.01,42399.0,42398.0,0.27599123]
[1644668529953,0.01,42399.0,42398.0,0.03599123]
[1644668534009,0.3,42412.0,42400.0,0.75]
[1644668534205,0.00049191,42401.0,42400.0,0.75]
[1644668534402,0.00049191,42401.0,42400.0,0.7973]
[1644668535205,0.3,42414.0,42400.0,0.915212]
[1644668535407,0.00027405,42403.0,42400.0,0.0473]
[1644668535803,0.00027405,42403.0,42387.0,0.6413]
[1644668535804,0.00027405,42403.0,42395.0,0.0473]
[1644668536407,0.19295148,42407.0,42395.0,0.0473]
[1644668536604,0.19295148,42407.0,42402.0,0.24520709]
[1644668536948,0.24295148,42407.0,42402.0,0.24520709]
[1644668537247,0.15,42408.0,42402.0,0.24520709]
[1644668537446,0.05,42408.0,42402.0,0.24520709]
[1644668537744,0.33003162,42407.0,42394.0,0.29904301]
[1644668537943,0.33003162,42407.0,42394.0,0.20965347]
[1644668537944,0.43003162,42407.0,42394.0,0.20965347]
[1644668538144,0.20130234,42405.0,42394.0,0.20965347]
[1644668538344,0.28707502,42404.0,42388.0,0.1641]
[1644668538555,0.28707502,42404.0,42388.0,0.1168]
[1644668538746,0.61428688,42404.0,42391.0,0.20713267]
[1644668538946,0.48462165,42404.0,42391.0,0.20713267]
[1644668539849,0.54361365,42404.0,42391.0,0.20713267]
[1644668540044,0.77009648,42404.0,42391.0,0.20713267]
[1644668540244,0.00049578,42400.0,42391.0,0.20713267]
[1644668540696,0.00049578,42400.0,42388.0,0.1168]
[1644668540900,0.0473,42399.0,42385.0,0.598]
[1644668541103,0.05,42397.0,42385.0,0.598]
[1644668541298,0.0473,42396.0,42385.0,0.598]
[1644668541496,0.00049581,42394.0,42385.0,0.598]
[1644668541798,0.00049581,42394.0,42384.0,0.7699]
[1644668541799,0.0473,42393.0,42387.0,0.19334993]
[1644668541996,0.27464518,42392.0,42387.0,0.19334993]
[1644668542200,0.0473,42391.0,42384.0,0.3747]
[1644668542404,0.0473,42391.0,42379.0,0.0001]
[1644668542703,0.05,42389.0,42379.0,0.0001]
[1644668542898,0.37579056,42388.0,42377.0,0.0001]
[1644668543099,0.25517654,42385.0,42377.0,0.0001]
[1644668543299,0.33910634,42384.0,42376.0,0.0001]
[1644668543498,0.0473,42383.0,42376.0,0.0001]
[1644668543704,0.04754663,42383.0,42376.0,0.0001]
[1644668543900,0.00049539,42382.0,42376.0,0.0001]
[1644668544099,0.0473,42381.0,42376.0,0.0001]
[1644668544949,0.04775537,42381.0,42376.0,0.0001]
[1644668545948,0.0473,42381.0,42376.0,0.0001]
[1644668546348,0.04775537,42381.0,42376.0,0.0001]
[1644668546749,0.31401986,42380.0,42376.0,0.0001]
[1644668546954,0.42034286,42380.0,42369.0,0.0001]
[1644668547252,0.31156649,42380.0,42369.0,0.0001]
[1644668547454,0.31177524,42380.0,42369.0,0.0001]
[1644668547752,0.53733571,42380.0,42369.0,0.0001]
[1644668548397,0.059027,42379.0,42369.0,0.0001]
[1644668548600,0.04775539,42378.0,42369.0,0.0001]
[1644668548797,0.26867561,42377.0,42369.0,0.0001]
[1644668549000,0.0473,42376.0,42369.0,0.0001]
[1644668549799,0.04775809,42376.0,42369.0,0.0001]
[1644668550200,0.04775809,42376.0,42367.0,0.19132958]
[1644668550201,0.04775809,42376.0,42368.0,0.0001]
[1644668550799,0.0473,42376.0,42368.0,0.0001]
[1644668551001,0.04775809,42376.0,42368.0,0.2239244]
[1644668551198,0.04775809,42376.0,42369.0,0.0001]
[1644668552049,0.0473,42376.0,42369.0,0.0001]
[1644668553249,0.0473,42376.0,42375.0,0.20302511]
[1644668553452,0.00023408,42376.0,42375.0,0.20312511]
[1644668553651,0.24023408,42376.0,42375.0,0.20312511]
[1644668553948,0.29023408,42376.0,42375.0,0.0001]
[1644668554152,6.587e-05,42375.0,42369.0,0.0001]
[1644668555795,6.587e-05,42375.0,42373.0,0.20256458]
[1644668555995,6.587e-05,42375.0,42374.0,0.0001]
[1644668556199,6.587e-05,42375.0,42374.0,0.07074538]
[1644668556596,6.587e-05,42375.0,42374.0,0.0001]
[1644668557496,6.587e-05,42375.0,42369.0,0.0001]
[1644668558097,0.26541014,42375.0,42369.0,0.0001]
[1644668558297,0.54282621,42375.0,42369.0,0.0001]
[1644668559096,0.54282621,42375.0,42372.0,0.02988607]
[1644668559568,0.54456225,42375.0,42372.0,0.02988607]
[1644668560071,0.54558005,42375.0,42372.0,0.02988607]
[1644668560269,0.3135211,42375.0,42372.0,0.02988607]
[1644668560468,0.04736587,42375.0,42372.0,0.02988607]
[1644668561570,0.3138906,42375.0,42372.0,0.02988607]
[1644668562171,0.04736587,42375.0,42372.0,0.02988607]
[1644668567651,6.587e-05,42375.0,42372.0,0.02988607]
[1644668568550,0.26462904,42375.0,42372.0,0.02988607]
[1644668568751,0.26810348,42375.0,42372.0,0.02988607]
[1644668571703,0.31810348,42375.0,42372.0,0.02988607]
[1644668571902,0.41810348,42375.0,42372.0,0.02988607]
[1644668572502,0.36810348,42375.0,42372.0,0.02988607]
[1644668573105,0.26810348,42375.0,42372.0,0.02988607]
[1644668573308,0.36810348,42375.0,42372.0,0.02988607]
[1644668574304,0.26810348,42375.0,42372.0,0.02988607]
[1644668574548,0.10006587,42375.0,42372.0,0.02988607]
[1644668574850,0.10006587,42375.0,42372.0,0.03345179]
[1644668575048,0.36509372,42375.0,42372.0,0.03345179]
[1644668575648,0.26522203,42375.0,42372.0,0.03345179]
[1644668575852,0.10006587,42375.0,42372.0,0.03345179]
[1644668576850,0.05006587,42375.0,42372.0,0.03345179]
[1644668577050,6.587e-05,42375.0,42372.0,0.03345179]
[1644668579698,6.587e-05,42375.0,42372.0,0.03339056]
[1644668580402,6.587e-05,42375.0,42372.0,0.50454137]
[1644668581801,6.587e-05,42375.0,42373.0,0.07800755]
[1644668583453,6.587e-05,42375.0,42372.0,0.50454137]
[1644668586006,6.587e-05,42375.0,42374.0,0.08476343]
[1644668588107,6.587e-05,42375.0,42372.0,0.24483469]
[1644668589308,6.587e-05,42375.0,42374.0,0.07645809]
[1644668591458,6.587e-05,42375.0,42372.0,0.24483469]
[1644668592456,6.587e-05,42375.0,42373.0,0.07145578]
[1644668593301,6.587e-05,42375.0,42374.0,0.28549488]
[1644668593701,0.00182947,42382.0,42375.0,0.75]
[1644668593901,0.00182947,42382.0,42375.0,0.75608336]
[1644668594102,0.00024694,42384.0,42375.0,0.75608336]
[1644668594302,0.00024694,42391.0,42379.0,0.23978199]
[1644668594502,0.22169529,42392.0,42388.0,0.24052329]
[1644668594703,0.00024694,42391.0,42385.0,0.07691099]
[1644668594902,0.00024694,42395.0,42380.0,0.1177]
[1644668595103,0.00024694,42396.0,42380.0,0.1177]
[1644668595303,0.11774694,42397.0,42380.0,0.1177]
[1644668595500,0.059002,42395.0,42380.0,0.1177]
[1644668595703,0.25916664,42395.0,42380.0,0.33564028]
[1644668596002,0.30941358,42395.0,42384.0,0.06517216]
[1644668596201,0.35916664,42395.0,42384.0,0.06517216]
[1644668596622,0.2,42395.0,42387.0,0.25442797]
[1644668596802,0.1,42395.0,42387.0,0.25442797]
[1644668597063,0.00024694,42396.0,42387.0,0.25442797]
[1644668597260,0.20024694,42397.0,42387.0,0.25442797]
[1644668597462,0.00024694,42396.0,42387.0,0.25442797]
[1644668597660,0.29497756,42396.0,42387.0,0.25442797]
[1644668597861,0.00049484,42394.0,42387.0,0.25442797]
[1644668598060,0.00049484,42394.0,42384.0,0.06517216]
[1644668598260,0.00049484,42394.0,42381.0,0.32233376]
[1644668598472,0.00049484,42394.0,42380.0,0.1177]
[1644668598473,0.25733952,42389.0,42380.0,0.1177]
[1644668598765,0.35726285,42389.0,42379.0,0.23978199]
[1644668598961,0.35726285,42389.0,42375.0,0.32810716]
[1644668599167,0.26999587,42385.0,42375.0,0.32810716]
[1644668599962,0.26999587,42385.0,42376.0,0.19319258]
[1644668600163,0.31999587,42385.0,42376.0,0.27104503]
[1644668600364,0.00049491,42382.0,42376.0,0.27104503]
[1644668600802,0.00049491,42382.0,42375.0,0.32810716]
[1644668601003,0.00049491,42382.0,42373.0,0.1246]
[1644668601304,0.31999587,42385.0,42373.0,0.1246]
[1644668601502,0.00049491,42381.0,42373.0,0.1246]
[1644668601901,0.00049491,42381.0,42374.0,0.21037684]
[1644668602604,0.31999587,42385.0,42374.0,0.21037684]
[1644668602605,0.31999587,42385.0,42375.0,0.28739214]
[1644668602802,0.31999587,42385.0,42374.0,0.2871549]
[1644668602803,0.00049492,42380.0,42374.0,0.2871549]
[1644668603204,0.00049492,42380.0,42373.0,0.1246]
[1644668603605,0.059018,42383.0,42373.0,0.1246]
[1644668603805,0.059018,42383.0,42372.0,0.39659056]
[1644668604005,0.00049492,42379.0,42372.0,0.39659056]
[1644668604211,0.00049492,42379.0,42372.0,0.03349056]
[1644668604212,0.27031466,42375.0,42372.0,0.03349056]
[1644668604458,0.27031466,42375.0,42372.0,0.03339056]
[1644668607258,0.05,42375.0,42372.0,0.03339056]
[1644668607456,0.20948783,42378.0,42372.0,0.03339056]
[1644668607656,0.15948783,42378.0,42372.0,0.03339056]
[1644668608409,0.1,42378.0,42372.0,0.03339056]
[1644668608810,0.00045852,42378.0,42372.0,0.02839056]
[1644668609211,0.00045852,42378.0,42373.0,0.0795558]
[1644668609813,0.1,42381.0,42373.0,0.0795558]
[1644668610013,0.00045852,42378.0,42373.0,0.0795558]
[1644668610213,0.29045852,42378.0,42373.0,0.0795558]
[1644668610814,0.29,42378.0,42373.0,0.0795558]
[1644668611015,0.29,42378.0,42372.0,0.02839056]
[1644668611214,0.29045852,42378.0,42372.0,0.02839056]
[1644668612052,0.29,42378.0,42372.0,0.02839056]
[1644668612253,0.059026,42377.0,42372.0,0.02839056]
[1644668614450,0.32366266,42377.0,42372.0,0.02839056]
[1644668614655,0.39,42378.0,42372.0,0.02839056]
[1644668614852,0.38992887,42378.0,42372.0,0.02839056]
[1644668615701,0.38947,42378.0,42372.0,0.02839056]
[1644668615906,0.38992885,42378.0,42372.0,0.02839056]
[1644668616104,0.28992885,42378.0,42372.0,0.02839056]
[1644668616307,0.3473,42377.0,42372.0,0.02839056]
[1644668616705,0.1473,42377.0,42372.0,0.02839056]
[1644668616908,0.4473,42377.0,42372.0,0.02839056]
[1644668617107,0.26564651,42376.0,42372.0,0.02839056]
[1644668617310,0.0473,42375.0,42372.0,0.02839056]
[1644668617508,0.224423,42375.0,42372.0,0.02839056]
[1644668617707,0.106341,42375.0,42372.0,0.02839056]
[1644668618508,0.31609004,42374.0,42372.0,0.02839056]